[Event "Early-Titled-Tuesday-Blitz-February-13-2024"]
[Site "Chess.com"]
[Date "2024.02.13"]
[Round "2"]
[White "N4700000"]
[Black "Hauptsache_Gambit"]
[Result "1-0"]
[WhiteElo "2442"]
[BlackElo "2025"]
[TimeControl "180+1"]
[EndTime "8:20:59 PST"]
[Termination "N4700000 won by resignation"]

1. e4 {[%clk 0:03:00.9]} 1... c5 {[%clk 0:02:58.6]} 2. Nf3 {[%clk 0:03:00.7]}
2... Nc6 {[%clk 0:02:54.3]} 3. Bb5 {[%clk 0:03:00.1]} 3... e5 {[%clk 0:02:52.3]}
4. O-O {[%clk 0:02:55.3]} 4... d6 {[%clk 0:02:50.6]} 5. c3 {[%clk 0:02:54.4]}
5... Nf6 {[%clk 0:02:49.7]} 6. d4 {[%clk 0:02:52.3]} 6... Qc7 {[%clk 0:02:22.1]}
7. d5 {[%clk 0:02:30.8]} 7... a6 {[%clk 0:02:22.3]} 8. Ba4 {[%clk 0:02:30.3]}
8... b5 {[%clk 0:02:16.4]} 9. dxc6 {[%clk 0:02:30.1]} 9... bxa4 {[%clk
0:02:16.5]} 10. Qxa4 {[%clk 0:02:30.9]} 10... Be7 {[%clk 0:02:12.3]} 11. Bg5
{[%clk 0:02:28.8]} 11... O-O {[%clk 0:02:12.5]} 12. Bxf6 {[%clk 0:02:27.3]}
12... Bxf6 {[%clk 0:02:11]} 13. c4 {[%clk 0:02:26]} 13... Bg4 {[%clk 0:02:07.6]}
14. Nc3 {[%clk 0:02:22.1]} 14... Rfc8 {[%clk 0:01:55.5]} 15. Nd5 {[%clk
0:02:19.7]} 15... Qxc6 {[%clk 0:01:51.6]} 16. Qxc6 {[%clk 0:02:04.6]} 16... Rxc6
{[%clk 0:01:51.1]} 17. Nd2 {[%clk 0:01:57]} 17... Rb8 {[%clk 0:01:46.4]} 18. b3
{[%clk 0:01:53.4]} 18... Bg5 {[%clk 0:01:33.4]} 19. Nb1 {[%clk 0:01:48.8]} 19...
Be6 {[%clk 0:01:22.8]} 20. Rd1 {[%clk 0:01:41.2]} 20... f5 {[%clk 0:01:15]} 21.
exf5 {[%clk 0:01:34.4]} 21... Bxf5 {[%clk 0:01:15.9]} 22. Nbc3 {[%clk
0:01:33.1]} 22... Bc2 {[%clk 0:01:06.3]} 23. Re1 {[%clk 0:01:24.3]} 23... Rf8
{[%clk 0:00:27.6]} 24. Ne4 {[%clk 0:01:20.4]} 24... Bd8 {[%clk 0:00:20.3]} 25.
Rac1 {[%clk 0:01:11.6]} 25... Bd3 {[%clk 0:00:17.1]} 26. Re3 {[%clk 0:01:06.3]}
26... Bxe4 {[%clk 0:00:14.6]} 27. Rxe4 {[%clk 0:01:07.2]} 27... a5 {[%clk
0:00:15.1]} 28. Nc3 {[%clk 0:01:05.6]} 28... Ra6 {[%clk 0:00:14.8]} 29. Rd1
{[%clk 0:01:05]} 29... Kf7 {[%clk 0:00:13.5]} 30. g3 {[%clk 0:00:59]} 30... Ke6
{[%clk 0:00:13.8]} 31. Kg2 {[%clk 0:00:58.6]} 31... g5 {[%clk 0:00:13.8]} 32.
Rd3 {[%clk 0:00:53.1]} 32... h5 {[%clk 0:00:14.1]} 33. h3 {[%clk 0:00:50.7]}
33... Kf5 {[%clk 0:00:13.2]} 34. g4+ {[%clk 0:00:48.9]} 34... hxg4 {[%clk
0:00:12.1]} 35. hxg4+ {[%clk 0:00:49.8]} 35... Ke6 {[%clk 0:00:12.6]} 36. Rh3
{[%clk 0:00:49.6]} 36... Rf4 {[%clk 0:00:11.2]} 37. Rh6+ {[%clk 0:00:47.4]}
37... Kd7 {[%clk 0:00:08.5]} 38. Kg3 {[%clk 0:00:42]} 38... a4 {[%clk
0:00:07.4]} 39. Re3 {[%clk 0:00:19]} 39... Ba5 {[%clk 0:00:07.5]} 40. Nxa4
{[%clk 0:00:18.2]} 40... Bd2 {[%clk 0:00:07.1]} 41. Nxc5+ {[%clk 0:00:16.3]}
41... dxc5 {[%clk 0:00:06.5]} 42. Rxa6 {[%clk 0:00:17.2]} 42... Bxe3 {[%clk
0:00:06.4]} 43. fxe3 {[%clk 0:00:17.8]} 43... Rf1 {[%clk 0:00:06]} 44. Rg6
{[%clk 0:00:16.8]} 44... Re1 {[%clk 0:00:05.2]} 45. Kf3 {[%clk 0:00:16.3]} 45...
Rf1+ {[%clk 0:00:04.5]} 46. Ke4 {[%clk 0:00:16.2]} 46... Rf2 {[%clk 0:00:05.1]}
47. Rxg5 {[%clk 0:00:16]} 47... Rxa2 {[%clk 0:00:05.7]} 48. Rxe5 {[%clk
0:00:16.2]} 48... Rg2 {[%clk 0:00:06.6]} 49. Rxc5 {[%clk 0:00:15.7]} 49... Rxg4+
{[%clk 0:00:07.1]} 50. Kd3 {[%clk 0:00:16]} 50... Rg1 {[%clk 0:00:08]} 51. Kc3
{[%clk 0:00:16]} 51... Kd6 {[%clk 0:00:08.9]} 52. Rd5+ {[%clk 0:00:16.3]} 52...
Kc6 {[%clk 0:00:08.8]} 53. Rd3 {[%clk 0:00:16.3]} 53... Rg2 {[%clk 0:00:08.7]}
54. Kd4 {[%clk 0:00:15.5]} 54... Rg4+ {[%clk 0:00:08.6]} 55. e4 {[%clk
0:00:15.8]} 55... Rg8 {[%clk 0:00:08.1]} 56. b4 {[%clk 0:00:15.6]} 56... Kd6
{[%clk 0:00:08.5]} 57. b5 {[%clk 0:00:15.3]} 57... Ke6 {[%clk 0:00:09.4]} 58.
Kc5 {[%clk 0:00:15.2]} 58... Rc8+ {[%clk 0:00:09.9]} 59. Kb4 {[%clk 0:00:15.5]}
59... Ke5 {[%clk 0:00:10.8]} 60. c5 {[%clk 0:00:15.5]} 60... Kxe4 {[%clk
0:00:11.2]} 61. Rd7 {[%clk 0:00:15.6]} 61... Ke5 {[%clk 0:00:11.4]} 62. c6
{[%clk 0:00:16]} 62... Ke6 {[%clk 0:00:12]} 63. Kc5 {[%clk 0:00:16.4]} 63... Rh8
{[%clk 0:00:11.7]} 64. b6 {[%clk 0:00:16.3]} 64... Rh5+ {[%clk 0:00:12.2]} 65.
Kb4 {[%clk 0:00:16.6]} 65... Rh1 {[%clk 0:00:09.9]} 66. b7 {[%clk 0:00:16.1]}
66... Rb1+ {[%clk 0:00:10.4]} 67. Kc5 {[%clk 0:00:16.5]} 67... Rc1+ {[%clk
0:00:10.6]} 68. Kb6 {[%clk 0:00:16.8]} 68... Rb1+ {[%clk 0:00:11.5]} 69. Kc7
{[%clk 0:00:17.1]} 69... Ke5 {[%clk 0:00:10.4]} 70. b8=Q {[%clk 0:00:16.7]}
70... Rxb8 {[%clk 0:00:09.8]} 71. Kxb8 {[%clk 0:00:17.6]} 1-0

[Event "Early-Titled-Tuesday-Blitz-February-13-2024"]
[Site "Chess.com"]
[Date "2024.02.13"]
[Round "2"]
[White "rcmz"]
[Black "cukricek"]
[Result "0-1"]
[WhiteElo "2188"]
[BlackElo "2491"]
[TimeControl "180+1"]
[EndTime "8:21:04 PST"]
[Termination "cukricek won by resignation"]

1. b4 {[%clk 0:03:00.9]} 1... Nf6 {[%clk 0:02:58.9]} 2. Bb2 {[%clk 0:02:59.7]}
2... g6 {[%clk 0:02:59.5]} 3. e3 {[%clk 0:02:58.5]} 3... Bg7 {[%clk 0:02:59.8]}
4. f4 {[%clk 0:02:58.5]} 4... O-O {[%clk 0:03:00]} 5. Nf3 {[%clk 0:02:58.6]}
5... d6 {[%clk 0:02:58.8]} 6. c4 {[%clk 0:02:57.8]} 6... a5 {[%clk 0:02:58.9]}
7. b5 {[%clk 0:02:57.3]} 7... Nbd7 {[%clk 0:02:52.4]} 8. Be2 {[%clk 0:02:56.7]}
8... e5 {[%clk 0:02:51.1]} 9. fxe5 {[%clk 0:02:53.5]} 9... Ng4 {[%clk
0:02:47.1]} 10. O-O {[%clk 0:02:49.9]} 10... dxe5 {[%clk 0:02:41]} 11. h3 {[%clk
0:02:43.9]} 11... Nh6 {[%clk 0:02:25]} 12. e4 {[%clk 0:02:18.7]} 12... f5 {[%clk
0:02:16]} 13. d3 {[%clk 0:02:17.7]} 13... b6 {[%clk 0:02:05.6]} 14. Nc3 {[%clk
0:02:11.5]} 14... Bb7 {[%clk 0:02:05.6]} 15. Nd5 {[%clk 0:02:11.6]} 15... Bxd5
{[%clk 0:01:56.9]} 16. cxd5 {[%clk 0:02:08.8]} 16... Qe7 {[%clk 0:01:52.5]} 17.
Qc2 {[%clk 0:02:05.5]} 17... Nc5 {[%clk 0:01:52.8]} 18. Ba3 {[%clk 0:02:03.5]}
18... Rf7 {[%clk 0:01:20.6]} 19. Bxc5 {[%clk 0:01:56.6]} 19... bxc5 {[%clk
0:01:21.5]} 20. a4 {[%clk 0:01:53.9]} 20... Bf8 {[%clk 0:01:04.5]} 21. Rac1
{[%clk 0:01:44.1]} 21... Rg7 {[%clk 0:00:57.1]} 22. Qd2 {[%clk 0:01:36.2]} 22...
g5 {[%clk 0:00:55.1]} 23. Qc3 {[%clk 0:01:25.4]} 23... g4 {[%clk 0:00:43.5]} 24.
hxg4 {[%clk 0:01:12.4]} 24... Nxg4 {[%clk 0:00:44.4]} 25. Qd2 {[%clk 0:00:56.7]}
25... f4 {[%clk 0:00:42.3]} 26. Nh2 {[%clk 0:00:47.2]} 26... Ne3 {[%clk
0:00:28.9]} 27. Rf2 {[%clk 0:00:47.4]} 27... Qh4 {[%clk 0:00:22.3]} 28. Bf3
{[%clk 0:00:47.3]} 28... Be7 {[%clk 0:00:15.9]} 29. Nf1 {[%clk 0:00:45.8]} 29...
Ng4 {[%clk 0:00:13]} 30. Bxg4 {[%clk 0:00:41.4]} 30... Rxg4 {[%clk 0:00:13.9]}
31. Nh2 {[%clk 0:00:38.8]} 31... Rg6 {[%clk 0:00:12.5]} 32. Nf3 {[%clk
0:00:35.4]} 32... Qh5 {[%clk 0:00:11.2]} 33. Kf1 {[%clk 0:00:34.8]} 33... Kh8
{[%clk 0:00:09.6]} 34. Ke1 {[%clk 0:00:32]} 34... Rag8 {[%clk 0:00:08.5]} 35.
Kd1 {[%clk 0:00:30.3]} 35... Bd6 {[%clk 0:00:04.9]} 36. Kc2 {[%clk 0:00:28.8]}
36... Rg3 {[%clk 0:00:05.3]} 37. Rcf1 {[%clk 0:00:27.8]} 37... Qg4 {[%clk
0:00:05.1]} 38. Qe2 {[%clk 0:00:26.8]} 38... Rxg2 {[%clk 0:00:04.7]} 39. Rxg2
{[%clk 0:00:26.2]} 39... Qxg2 {[%clk 0:00:05.6]} 40. Qxg2 {[%clk 0:00:25.9]}
40... Rxg2+ {[%clk 0:00:06.5]} 41. Kc3 {[%clk 0:00:25.5]} 41... Rg3 {[%clk
0:00:05.9]} 42. Ng5 {[%clk 0:00:24.1]} 42... Kg7 {[%clk 0:00:03.6]} 43. Ne6+
{[%clk 0:00:23.5]} 43... Kf6 {[%clk 0:00:04.1]} 44. Rh1 {[%clk 0:00:22.6]} 44...
Kg6 {[%clk 0:00:01.8]} 45. Rf1 {[%clk 0:00:16.6]} 45... h5 {[%clk 0:00:02.2]}
46. Kc4 {[%clk 0:00:14.7]} 46... h4 {[%clk 0:00:02]} 47. Nxc5 {[%clk 0:00:14]}
47... Bxc5 {[%clk 0:00:02.1]} 48. Kxc5 {[%clk 0:00:14.3]} 48... h3 {[%clk
0:00:02.8]} 49. Rh1 {[%clk 0:00:12.1]} 49... Rxd3 {[%clk 0:00:02.8]} 50. b6
{[%clk 0:00:10.7]} 50... cxb6+ {[%clk 0:00:02.4]} 51. Kxb6 {[%clk 0:00:10.9]}
51... Kg5 {[%clk 0:00:03]} 52. Kxa5 {[%clk 0:00:10.6]} 52... Kg4 {[%clk
0:00:03.2]} 53. Kb4 {[%clk 0:00:10.6]} 53... Kg3 {[%clk 0:00:03.2]} 54. Re1
{[%clk 0:00:08.8]} 54... h2 {[%clk 0:00:03.2]} 55. a5 {[%clk 0:00:08.3]} 55...
f3 {[%clk 0:00:02.6]} 56. a6 {[%clk 0:00:07.7]} 56... f2 {[%clk 0:00:02.7]} 57.
Rc1 {[%clk 0:00:05.1]} 57... Kg2 {[%clk 0:00:02.3]} 58. a7 {[%clk 0:00:05.1]}
58... f1=Q {[%clk 0:00:02.4]} 59. Rxf1 {[%clk 0:00:04.7]} 59... Kxf1 {[%clk
0:00:03.3]} 60. a8=Q {[%clk 0:00:04.1]} 60... h1=Q {[%clk 0:00:03.8]} 61. Qa1+
{[%clk 0:00:03.8]} 61... Kg2 {[%clk 0:00:03.7]} 62. Qxh1+ {[%clk 0:00:03.5]}
62... Kxh1 {[%clk 0:00:04]} 63. Kc5 {[%clk 0:00:02.5]} 63... Rd4 {[%clk
0:00:04.3]} 64. d6 {[%clk 0:00:02.7]} 64... Rxe4 {[%clk 0:00:04.9]} 65. d7
{[%clk 0:00:03]} 65... Rd4 {[%clk 0:00:05.6]} 66. Kc6 {[%clk 0:00:03.1]} 66...
e4 {[%clk 0:00:05.8]} 67. d8=Q {[%clk 0:00:02.8]} 67... Rxd8 {[%clk 0:00:06]}
0-1

[Event "Early-Titled-Tuesday-Blitz-February-13-2024"]
[Site "Chess.com"]
[Date "2024.02.13"]
[Round "2"]
[White "HansOnTwitch"]
[Black "Harry_Rakkel"]
[Result "1/2-1/2"]
[WhiteElo "3163"]
[BlackElo "2697"]
[TimeControl "180+1"]
[EndTime "8:21:05 PST"]
[Termination "Game drawn - insufficient material"]

1. d4 {[%clk 0:03:00.9]} 1... Nf6 {[%clk 0:02:59.1]} 2. Nc3 {[%clk 0:03:01.5]}
2... d5 {[%clk 0:02:57.9]} 3. Bf4 {[%clk 0:03:01.7]} 3... a6 {[%clk 0:02:56.9]}
4. e3 {[%clk 0:03:01.5]} 4... e6 {[%clk 0:02:56.4]} 5. g4 {[%clk 0:03:01.8]}
5... Bb4 {[%clk 0:02:55.6]} 6. Ne2 {[%clk 0:02:52.9]} 6... O-O {[%clk
0:02:36.8]} 7. a3 {[%clk 0:02:50.7]} 7... Bd6 {[%clk 0:02:31.9]} 8. g5 {[%clk
0:02:50.7]} 8... Nfd7 {[%clk 0:02:30.8]} 9. Bxd6 {[%clk 0:02:50.2]} 9... cxd6
{[%clk 0:02:30.5]} 10. h4 {[%clk 0:02:50.8]} 10... b5 {[%clk 0:02:28.1]} 11. Bg2
{[%clk 0:02:49.4]} 11... Nb6 {[%clk 0:02:27.7]} 12. Nf4 {[%clk 0:02:48.7]} 12...
Nc6 {[%clk 0:02:25.3]} 13. Qh5 {[%clk 0:02:47.2]} 13... Qc7 {[%clk 0:02:12.2]}
14. Bf1 {[%clk 0:02:34.5]} 14... b4 {[%clk 0:02:00.9]} 15. axb4 {[%clk
0:02:25.1]} 15... Nxb4 {[%clk 0:01:59.7]} 16. Qd1 {[%clk 0:02:12.4]} 16... Bd7
{[%clk 0:01:48.4]} 17. Nd3 {[%clk 0:01:52.6]} 17... a5 {[%clk 0:01:44.6]} 18. h5
{[%clk 0:01:46.7]} 18... Nc4 {[%clk 0:01:40.9]} 19. Qc1 {[%clk 0:01:34.2]} 19...
Rab8 {[%clk 0:01:31.3]} 20. Nd1 {[%clk 0:01:28.2]} 20... Bb5 {[%clk 0:01:13.4]}
21. b3 {[%clk 0:01:24.1]} 21... Na3 {[%clk 0:00:28.7]} 22. Nxb4 {[%clk
0:01:01.5]} 22... axb4 {[%clk 0:00:27.5]} 23. c3 {[%clk 0:00:59.2]} 23... Rfc8
{[%clk 0:00:25.3]} 24. g6 {[%clk 0:00:25.9]} 24... fxg6 {[%clk 0:00:20.4]} 25.
hxg6 {[%clk 0:00:26.8]} 25... hxg6 {[%clk 0:00:20.9]} 26. Bxb5 {[%clk
0:00:18.7]} 26... Nxb5 {[%clk 0:00:20.6]} 27. Qb1 {[%clk 0:00:19.3]} 27... Qf7
{[%clk 0:00:20.5]} 28. cxb4 {[%clk 0:00:18.9]} 28... Nc3 {[%clk 0:00:18.3]} 29.
Qd3 {[%clk 0:00:15.6]} 29... Nxd1 {[%clk 0:00:14.1]} 30. Rxd1 {[%clk 0:00:15.3]}
30... Qf3 {[%clk 0:00:13]} 31. Rg1 {[%clk 0:00:14.9]} 31... Rf8 {[%clk
0:00:12.7]} 32. Rf1 {[%clk 0:00:08.4]} 32... Rxb4 {[%clk 0:00:08.3]} 33. Qxg6
{[%clk 0:00:07]} 33... Qf7 {[%clk 0:00:06.2]} 34. Rg1 {[%clk 0:00:04.5]} 34...
Rxb3 {[%clk 0:00:04.3]} 35. Qxf7+ {[%clk 0:00:04.1]} 35... Kxf7 {[%clk
0:00:04.3]} 36. Ke2 {[%clk 0:00:03.5]} 36... Ra8 {[%clk 0:00:04.9]} 37. Rd2
{[%clk 0:00:03.8]} 37... Rh8 {[%clk 0:00:03.8]} 38. Rc1 {[%clk 0:00:03.7]} 38...
Rh2 {[%clk 0:00:04]} 39. Rc7+ {[%clk 0:00:03.7]} 39... Kf6 {[%clk 0:00:04.2]}
40. Rd7 {[%clk 0:00:04.4]} 40... Rb6 {[%clk 0:00:03.9]} 41. Rc2 {[%clk
0:00:04.8]} 41... g5 {[%clk 0:00:04.1]} 42. Kf3 {[%clk 0:00:05.1]} 42... Rh3+
{[%clk 0:00:03.8]} 43. Kg4 {[%clk 0:00:05.7]} 43... Rh4+ {[%clk 0:00:03.7]} 44.
Kg3 {[%clk 0:00:06.5]} 44... Rh8 {[%clk 0:00:04.5]} 45. Rcc7 {[%clk 0:00:06.9]}
45... Rf8 {[%clk 0:00:04.7]} 46. Kg4 {[%clk 0:00:07.5]} 46... Rb1 {[%clk
0:00:04]} 47. Rh7 {[%clk 0:00:07.8]} 47... Rg1+ {[%clk 0:00:04.7]} 48. Kf3
{[%clk 0:00:07.3]} 48... Kg6+ {[%clk 0:00:05.1]} 49. Ke2 {[%clk 0:00:07.8]}
49... Rg2 {[%clk 0:00:04.8]} 50. Rcg7+ {[%clk 0:00:07.7]} 50... Kf6 {[%clk
0:00:05.2]} 51. Kf1 {[%clk 0:00:06.4]} 51... Rg4 {[%clk 0:00:04.8]} 52. Rd7
{[%clk 0:00:06.3]} 52... Kf5 {[%clk 0:00:04.3]} 53. Rxd6 {[%clk 0:00:05.8]}
53... Rh4 {[%clk 0:00:04.7]} 54. Re7 {[%clk 0:00:04.6]} 54... Rf6 {[%clk
0:00:04.4]} 55. Kg2 {[%clk 0:00:04.7]} 55... g4 {[%clk 0:00:04.4]} 56. Re8
{[%clk 0:00:03.8]} 56... Rh3 {[%clk 0:00:03.9]} 57. Rd7 {[%clk 0:00:02.1]} 57...
Rf3 {[%clk 0:00:04.5]} 58. Rg7 {[%clk 0:00:01.8]} 58... Ke4 {[%clk 0:00:04.9]}
59. Rxg4+ {[%clk 0:00:01.5]} 59... Kd3 {[%clk 0:00:05.6]} 60. Rf4 {[%clk
0:00:02.2]} 60... R3xf4 {[%clk 0:00:06]} 61. exf4 {[%clk 0:00:03.1]} 61... Rxf4
{[%clk 0:00:06.4]} 62. Rxe6 {[%clk 0:00:03.4]} 62... Kxd4 {[%clk 0:00:06.7]} 63.
Kg3 {[%clk 0:00:04]} 63... Rf8 {[%clk 0:00:07.1]} 64. f4 {[%clk 0:00:03.9]}
64... Kc3 {[%clk 0:00:07.4]} 65. Kf3 {[%clk 0:00:04.4]} 65... d4 {[%clk
0:00:07.8]} 66. Rc6+ {[%clk 0:00:05]} 66... Kd2 {[%clk 0:00:07.6]} 67. Ke4
{[%clk 0:00:05.3]} 67... d3 {[%clk 0:00:07.9]} 68. Rd6 {[%clk 0:00:06]} 68...
Re8+ {[%clk 0:00:08.1]} 69. Kf5 {[%clk 0:00:06.6]} 69... Ke2 {[%clk 0:00:08.4]}
70. Kg6 {[%clk 0:00:06.8]} 70... d2 {[%clk 0:00:08.5]} 71. f5 {[%clk 0:00:07.5]}
71... d1=Q {[%clk 0:00:08.7]} 72. Rxd1 {[%clk 0:00:08.1]} 72... Kxd1 {[%clk
0:00:09.3]} 73. f6 {[%clk 0:00:08.8]} 73... Ke2 {[%clk 0:00:09.7]} 74. f7 {[%clk
0:00:09.7]} 74... Rf8 {[%clk 0:00:10]} 75. Kg7 {[%clk 0:00:10.6]} 75... Rxf7+
{[%clk 0:00:09.8]} 76. Kxf7 {[%clk 0:00:11.5]} 1/2-1/2

[Event "Early-Titled-Tuesday-Blitz-February-13-2024"]
[Site "Chess.com"]
[Date "2024.02.13"]
[Round "2"]
[White "calin_dragomirescu"]
[Black "LeoLV10"]
[Result "0-1"]
[WhiteElo "2332"]
[BlackElo "2551"]
[TimeControl "180+1"]
[EndTime "8:21:11 PST"]
[Termination "LeoLV10 won by resignation"]

1. c4 {[%clk 0:02:59.4]} 1... c5 {[%clk 0:02:59.8]} 2. Nf3 {[%clk 0:02:59]} 2...
Nc6 {[%clk 0:02:57.6]} 3. g3 {[%clk 0:02:58.8]} 3... g6 {[%clk 0:02:57.7]} 4.
Bg2 {[%clk 0:02:58.8]} 4... Bg7 {[%clk 0:02:58.6]} 5. Nc3 {[%clk 0:02:59.2]}
5... d6 {[%clk 0:02:58.5]} 6. O-O {[%clk 0:02:58.7]} 6... e5 {[%clk 0:02:59]} 7.
d3 {[%clk 0:02:57.4]} 7... Nge7 {[%clk 0:02:58.7]} 8. Rb1 {[%clk 0:02:57.3]}
8... O-O {[%clk 0:02:58]} 9. a3 {[%clk 0:02:57.3]} 9... a5 {[%clk 0:02:58.6]}
10. Nb5 {[%clk 0:02:55.9]} 10... Be6 {[%clk 0:02:56.8]} 11. Ng5 {[%clk
0:02:54.7]} 11... Bc8 {[%clk 0:02:53.8]} 12. Ne4 {[%clk 0:02:53.5]} 12... d5
{[%clk 0:02:44.6]} 13. cxd5 {[%clk 0:02:45.5]} 13... Nxd5 {[%clk 0:02:38.9]} 14.
Nxc5 {[%clk 0:02:44.5]} 14... Re8 {[%clk 0:02:30.7]} 15. Nc3 {[%clk 0:02:41]}
15... Nde7 {[%clk 0:02:28.1]} 16. a4 {[%clk 0:02:30.1]} 16... Be6 {[%clk
0:02:27.2]} 17. Nxe6 {[%clk 0:02:29.5]} 17... fxe6 {[%clk 0:02:26.5]} 18. Ne4
{[%clk 0:02:27.8]} 18... Nd5 {[%clk 0:02:24.7]} 19. Bd2 {[%clk 0:02:24.1]} 19...
Qe7 {[%clk 0:02:16.8]} 20. Rc1 {[%clk 0:02:17.6]} 20... Rf8 {[%clk 0:02:16.1]}
21. Nc3 {[%clk 0:02:13.4]} 21... Ndb4 {[%clk 0:02:03.1]} 22. Ne4 {[%clk
0:02:09.1]} 22... Nd5 {[%clk 0:02:01.7]} 23. Rc4 {[%clk 0:02:01.5]} 23... Nb6
{[%clk 0:02:00.1]} 24. Rc5 {[%clk 0:01:56.5]} 24... Nd4 {[%clk 0:01:56.5]} 25.
e3 {[%clk 0:01:51.9]} 25... Nf5 {[%clk 0:01:54.9]} 26. Rb5 {[%clk 0:01:50.9]}
26... Nd5 {[%clk 0:01:51.8]} 27. Nc5 {[%clk 0:01:47.3]} 27... b6 {[%clk
0:01:48.6]} 28. Nb3 {[%clk 0:01:39.1]} 28... Nd6 {[%clk 0:01:43.6]} 29. Rxd5
{[%clk 0:01:37]} 29... exd5 {[%clk 0:01:41.8]} 30. Bxd5+ {[%clk 0:01:37.6]}
30... Kh8 {[%clk 0:01:42.7]} 31. Bxa8 {[%clk 0:01:37.3]} 31... Rxa8 {[%clk
0:01:43.6]} 32. Bc3 {[%clk 0:01:34.6]} 32... Rf8 {[%clk 0:01:42.4]} 33. Nd2
{[%clk 0:01:34.5]} 33... Qb7 {[%clk 0:01:39.5]} 34. e4 {[%clk 0:01:31.4]} 34...
Qc6 {[%clk 0:01:36.4]} 35. Qb3 {[%clk 0:01:28.1]} 35... Nb7 {[%clk 0:01:35.5]}
36. Nc4 {[%clk 0:01:24.4]} 36... Nc5 {[%clk 0:01:32.5]} 37. Qb5 {[%clk
0:01:23.5]} 37... Qc8 {[%clk 0:01:10]} 38. Qxb6 {[%clk 0:01:20]} 38... Nxd3
{[%clk 0:01:08.2]} 39. Ne3 {[%clk 0:01:11.9]} 39... Nc5 {[%clk 0:01:05.2]} 40.
f3 {[%clk 0:01:01.8]} 40... Nxa4 {[%clk 0:01:04.3]} 41. Qxa5 {[%clk 0:00:59.6]}
41... Nc5 {[%clk 0:00:50.1]} 42. Bb4 {[%clk 0:00:54.5]} 42... Nb3 {[%clk
0:00:47.7]} 43. Qd5 {[%clk 0:00:52]} 43... Nd4 {[%clk 0:00:31.3]} 44. Bxf8
{[%clk 0:00:50.1]} 44... Qxf8 {[%clk 0:00:32.2]} 45. Kg2 {[%clk 0:00:47.2]}
45... h6 {[%clk 0:00:30.1]} 46. Ng4 {[%clk 0:00:42.5]} 46... Qb8 {[%clk
0:00:22.6]} 47. b4 {[%clk 0:00:34.8]} 47... h5 {[%clk 0:00:22]} 48. Ne3 {[%clk
0:00:34.4]} 48... Qxb4 {[%clk 0:00:21.3]} 49. Rf2 {[%clk 0:00:34.3]} 49... Qe1
{[%clk 0:00:20.2]} 50. Qd8+ {[%clk 0:00:31.6]} 50... Kh7 {[%clk 0:00:19.9]} 51.
Qd7 {[%clk 0:00:30.7]} 51... Qxe3 {[%clk 0:00:18.7]} 52. h4 {[%clk 0:00:28.8]}
52... Qe1 {[%clk 0:00:18.5]} 53. Qd5 {[%clk 0:00:28]} 53... Ne2 {[%clk
0:00:18.7]} 54. Rxe2 {[%clk 0:00:26]} 54... Qxe2+ {[%clk 0:00:19.1]} 55. Kh3
{[%clk 0:00:26.7]} 55... Qxf3 {[%clk 0:00:19.1]} 56. Kh2 {[%clk 0:00:25.6]}
56... Qg4 {[%clk 0:00:19.4]} 57. Kg2 {[%clk 0:00:23.5]} 57... Qc8 {[%clk
0:00:19.5]} 58. Qf7 {[%clk 0:00:22]} 58... Qf8 {[%clk 0:00:19.5]} 59. Qd5 {[%clk
0:00:21.7]} 59... Qe7 {[%clk 0:00:19.5]} 60. Kh3 {[%clk 0:00:21.3]} 60... Bf6
{[%clk 0:00:20.4]} 61. Kg2 {[%clk 0:00:21.2]} 61... Kg7 {[%clk 0:00:19.7]} 62.
Kh3 {[%clk 0:00:21.7]} 62... Kh6 {[%clk 0:00:17.8]} 63. Kg2 {[%clk 0:00:22]}
63... g5 {[%clk 0:00:18]} 64. hxg5+ {[%clk 0:00:22.2]} 64... Bxg5 {[%clk
0:00:18.7]} 65. Qg8 {[%clk 0:00:21.6]} 65... Bf6 {[%clk 0:00:18.3]} 66. Kh3
{[%clk 0:00:19.5]} 66... Qd7+ {[%clk 0:00:18.2]} 67. Kg2 {[%clk 0:00:19.4]}
67... Qd2+ {[%clk 0:00:18.7]} 68. Kh3 {[%clk 0:00:19.1]} 68... Qe2 {[%clk
0:00:14.7]} 69. Qf8+ {[%clk 0:00:18.4]} 69... Bg7 {[%clk 0:00:15]} 70. Qf5
{[%clk 0:00:18.2]} 70... Qg4+ {[%clk 0:00:13.6]} 71. Qxg4 {[%clk 0:00:18.4]}
71... hxg4+ {[%clk 0:00:14.3]} 72. Kxg4 {[%clk 0:00:19.3]} 72... Kg6 {[%clk
0:00:14.5]} 73. Kf3 {[%clk 0:00:19.6]} 73... Kg5 {[%clk 0:00:15]} 74. Ke3 {[%clk
0:00:19.4]} 74... Kg4 {[%clk 0:00:14.8]} 75. Kf2 {[%clk 0:00:20.3]} 75... Bh6
{[%clk 0:00:14.8]} 76. Kg2 {[%clk 0:00:21.2]} 76... Be3 {[%clk 0:00:14.7]} 77.
Kh2 {[%clk 0:00:20.8]} 77... Kf3 {[%clk 0:00:14]} 78. Kh3 {[%clk 0:00:20.9]}
78... Bg5 {[%clk 0:00:14.9]} 79. g4 {[%clk 0:00:20.4]} 79... Kf4 {[%clk
0:00:15.2]} 80. Kh2 {[%clk 0:00:20.2]} 80... Kxe4 {[%clk 0:00:15.7]} 81. Kg2
{[%clk 0:00:21.1]} 81... Kf4 {[%clk 0:00:16.1]} 0-1